fUST/lending_fUST_20250501
["ID","MTS","AMOUNT","RATE_DAILY","PERIOD"]
[359539794,1746096665255,-1512.75,0.0003726,12]
[359539797,1746096665266,-1715.43,0.0003726,12]
[359539799,1746096665276,-1068.22,0.0003726,12]
[359539801,1746096665286,-421.82,0.0003726,12]
[359539803,1746096665296,-400.0,0.0003726,12]
[359539805,1746096665306,-400.0,0.0003726,12]
[359539807,1746096665316,-1878.01,0.0003726,12]
[359539809,1746096665326,-520.36,0.0003726,7]
[359539811,1746096665336,-24151.59,0.0003726,12]
[359539813,1746096665346,-400.0,0.0003726,12]
[359539815,1746096665356,-967.92,0.0003726,12]
[359539817,1746096665365,-618.55,0.0003726,12]
[359539819,1746096665375,-400.0,0.0003726,12]
[359539821,1746096665384,-400.0,0.0003726,12]
[359539823,1746096665394,-400.0,0.0003726,12]
[359539825,1746096665404,-206.9041,0.00037354,2]
[359539827,1746096665414,-500.0,0.00037356,120]
[359539829,1746096665423,-500.0,0.00037356,120]
[359539831,1746096665433,-183.91,0.00037356,120]
[359539833,1746096665442,-481.0111539,0.00037383,36]
[359539835,1746096665451,-501.22274592,0.00037436,14]
[359539837,1746096665462,-1000.0,0.00037452,5]
[359539839,1746096665472,-500.0,0.00037452,5]
[359539841,1746096665481,-1012.683365,0.00037452,5]
[359539843,1746096665495,-151.0,0.000375,18]
[359539845,1746096665504,-362.0172928,0.00037521,30]
[359539847,1746096665513,-902.74,0.00037534,12]
[359539849,1746096665522,-400.0,0.00037534,12]
[359539851,1746096665531,-400.0,0.00037534,12]
[359539853,1746096665541,-590.31,0.00037534,12]
[359539855,1746096665550,-492.25,0.00037534,12]
[359539857,1746096665559,-400.0,0.00037534,12]
[359539859,1746096665568,-400.0,0.00037534,12]
[359539861,1746096665577,-801.35,0.00037534,12]
[359539863,1746096665586,-237.48891662,0.00037534,12]
[359539865,1746096665595,-400.0,0.00037534,12]
[359539867,1746096665605,-423.58,0.00037534,12]
[359539869,1746096665614,-432.05,0.00037534,12]
[359539871,1746096665623,-500.0,0.00037534,12]
[359539873,1746096665633,-216.24606436,0.00037534,12]
[359539876,1746096665646,-410.59011081,0.00037534,12]
[359539878,1746096665655,-428.13,0.00037534,12]
[359539880,1746096665665,-400.0,0.00037534,12]
[359539882,1746096665675,-400.0,0.00037534,12]
[359539884,1746096665685,-533.88,0.00037534,12]
[359539886,1746096665695,-400.0,0.00037534,12]
[359539888,1746096665704,-400.0,0.00037534,12]
[359539890,1746096665715,-634.75,0.00037534,12]
[359539892,1746096665724,-400.0,0.00037534,12]
[359539894,1746096665734,-400.0,0.00037534,12]
[359539896,1746096665745,-1060.8,0.00037534,12]
[359539898,1746096665755,-230.56673692,0.00037534,12]
[359539900,1746096665765,-400.0,0.00037534,12]
[359539902,1746096665775,-400.0,0.00037534,12]
[359539904,1746096665785,-5879.35,0.00037534,12]
[359539906,1746096665795,-173.9867853,0.00037534,12]
[359539908,1746096665805,-400.0,0.00037534,12]
[359539910,1746096665817,-400.0,0.00037534,12]
[359539913,1746096665827,-1242.1,0.00037534,12]
[359539915,1746096665837,-1506.06,0.00037534,12]
[359539917,1746096665846,-400.0,0.00037534,12]
[359539919,1746096665856,-400.0,0.00037534,12]
[359539921,1746096665865,-972.05,0.00037534,12]
[359539923,1746096665874,-400.0,0.00037534,12]
[359539940,1746096666026,-437.91,0.00037534,12]
[359539942,1746096666039,-400.0,0.00037534,12]
[359539944,1746096666049,-400.0,0.00037534,12]
[359539946,1746096666059,-974.81,0.00037534,12]
[359539948,1746096666069,-400.0,0.00037534,12]
[359539950,1746096666079,-922.16,0.00037534,12]
[359539953,1746096666089,-1363.87,0.00037534,12]
[359539955,1746096666099,-400.0,0.00037534,12]
[359539957,1746096666119,-400.0,0.00037534,12]
[359539959,1746096666129,-1130.45,0.00037534,12]
[359539961,1746096666139,-1035.43,0.00037534,12]
[359539963,1746096666149,-400.0,0.00037534,12]
[359539965,1746096666159,-544.71,0.00037534,12]
[359539967,1746096666169,-400.0,0.00037534,12]
[359539969,1746096666180,-400.0,0.00037534,12]
[359539971,1746096666189,-999.06,0.00037534,12]
[359539973,1746096666199,-400.0,0.00037534,12]
[359539975,1746096666209,-487.72,0.00037534,12]
[359539977,1746096666218,-400.0,0.00037534,12]
[359539979,1746096666228,-400.0,0.00037534,12]
[359539981,1746096666238,-687.88,0.00037534,12]
[359539983,1746096666247,-400.0,0.00037534,12]
[359539985,1746096666257,-400.0,0.00037534,12]
[359539987,1746096666266,-766.29,0.00037534,12]
[359539989,1746096666276,-400.0,0.00037534,12]
[359539991,1746096666286,-414.4,0.00037534,12]
[359539993,1746096666295,-437.32,0.00037534,12]
[359539995,1746096666305,-241.56288483,0.00037534,12]
[359539997,1746096666315,-400.0,0.00037534,12]
[359539999,1746096666324,-711.38,0.00037534,12]
[359540001,1746096666333,-780.7,0.00037534,12]
[359540003,1746096666343,-850.81,0.00037534,12]
[359540005,1746096666352,-1690.3,0.00037534,12]
[359540007,1746096666361,-400.0,0.00037534,12]
[359540009,1746096666371,-400.0,0.00037534,12]
[359540011,1746096666380,-400.0,0.00037534,12]
[359540013,1746096666390,-339.07980424,0.00037534,12]
[359540015,1746096666400,-786.89,0.00037534,12]
[359540017,1746096666409,-640.11,0.00037534,12]
[359540019,1746096666419,-400.0,0.00037534,12]
[359540022,1746096666429,-417.64,0.00037534,12]
[359540023,1746096666438,-584.45,0.00037534,12]
[359540026,1746096666448,-400.0,0.00037534,12]
[359540028,1746096666457,-400.0,0.00037534,12]
[359540029,1746096666468,-868.0,0.00037534,12]
[359540032,1746096666478,-716.32,0.00037534,12]
[359540034,1746096666488,-400.0,0.00037534,12]
[359540036,1746096666500,-642.27,0.00037534,12]
[359540039,1746096666510,-400.0,0.00037534,12]
[359540041,1746096666531,-400.0,0.00037534,12]
[359540043,1746096666541,-7263.1,0.00037534,12]
[359540045,1746096666552,-400.0,0.00037534,12]
[359540047,1746096666563,-474.85,0.00037534,12]
[359540049,1746096666574,-1279.87,0.00037534,12]
[359540051,1746096666584,-507.45206023,0.00037534,12]
[359540054,1746096666595,-400.0,0.00037534,12]
[359540056,1746096666605,-782.18,0.00037534,12]
[359540058,1746096666615,-613.22,0.00037534,12]
[359540060,1746096666625,-663.26,0.00037534,12]
[359540062,1746096666635,-1214.5,0.00037534,12]
[359540064,1746096666645,-721.89,0.00037534,12]
[359540066,1746096666655,-749.12,0.00037534,12]
[359540068,1746096666666,-653.13,0.00037534,12]
[359540070,1746096666676,-400.0,0.00037534,12]
[359540072,1746096666686,-400.0,0.00037534,12]
[359540074,1746096666695,-400.0,0.00037534,12]
[359540076,1746096666706,-2249.58,0.00037534,12]
[359540078,1746096666716,-400.0,0.00037534,12]
[359540080,1746096666726,-400.0,0.00037534,12]
[359540082,1746096666736,-400.0,0.00037534,12]
[359540085,1746096666748,-400.0,0.00037534,12]
[359540087,1746096666759,-1189.09,0.00037534,12]
[359540089,1746096666769,-7409.08,0.00037534,12]
[359540091,1746096666778,-400.0,0.00037534,12]
[359540093,1746096666788,-5309.34,0.00037534,2]
[359540095,1746096666798,-587.93,0.00037534,12]
[359540097,1746096666808,-400.0,0.00037534,12]
[359540099,1746096666820,-1353.42,0.00037534,12]
[359540101,1746096666829,-400.0,0.00037534,12]
[359540103,1746096666839,-406.49,0.00037534,12]
[359540105,1746096666849,-400.0,0.00037534,12]
[359540108,1746096666859,-400.0,0.00037534,12]
[359540110,1746096666870,-400.0,0.00037534,12]
[359540112,1746096666880,-400.0,0.00037534,12]
[359540114,1746096666890,-2637.7,0.00037534,12]
[359540116,1746096666899,-1022.26,0.00037534,12]
[359540118,1746096666909,-400.0,0.00037534,12]
[359540120,1746096666919,-586.11,0.00037534,12]
[359540122,1746096666930,-400.0,0.00037534,12]
[359540124,1746096666939,-4465.41,0.00037534,12]
[359540126,1746096666949,-5251.3,0.00037534,12]
[359540128,1746096666958,-2091.05,0.00037534,12]
[359540130,1746096666968,-3705.22,0.00037534,12]
[359540132,1746096666978,-400.0,0.00037534,12]
[359540134,1746096666988,-1883.95,0.00037534,12]
[359540136,1746096666998,-400.0,0.00037534,12]
[359540138,1746096667008,-791.98,0.00037534,12]
[359540140,1746096667018,-400.0,0.00037534,12]
[359540142,1746096667028,-400.0,0.00037534,12]
[359540145,1746096667044,-731.82,0.00037534,12]
[359540147,1746096667054,-400.0,0.00037534,12]
[359540149,1746096667064,-400.0,0.00037534,12]
[359540151,1746096667075,-290.74750581,0.00037534,12]
[359540153,1746096667086,-400.0,0.00037534,12]
[359540155,1746096667096,-413.07,0.00037534,12]
[359540157,1746096667106,-307.62391178,0.00037534,12]
[359540159,1746096667117,-1782.62,0.00037534,12]
[359540161,1746096667126,-400.0,0.00037534,12]
[359540163,1746096667136,-400.0,0.00037534,12]
[359540165,1746096667146,-400.0,0.00037534,12]
[359540167,1746096667156,-2643.74,0.00037534,12]
[359540169,1746096667166,-400.0,0.00037534,12]
[359540171,1746096667177,-652.63,0.00037534,12]
[359540174,1746096667189,-400.0,0.00037534,12]
[359540175,1746096667200,-400.0,0.00037534,12]
[359540177,1746096667210,-2256.5,0.00037534,12]
[359540179,1746096667220,-880.9,0.00037534,12]
[359540181,1746096667231,-1390.66,0.00037534,12]
[359540183,1746096667242,-553.06,0.00037534,12]
[359540185,1746096667253,-746.24,0.00037534,12]
[359540188,1746096667264,-734.35,0.00037534,12]
[359540190,1746096667274,-400.0,0.00037534,12]
[359540192,1746096667283,-400.0,0.00037534,12]
[359540194,1746096667295,-514.96340947,0.00037534,12]
[359540196,1746096667307,-400.0,0.00037534,12]
[359540198,1746096667316,-400.0,0.00037534,12]
[359540200,1746096667327,-400.0,0.00037534,12]
[359540202,1746096667338,-1827.75,0.00037534,12]
[359540204,1746096667349,-400.0,0.00037534,12]
[359540206,1746096667359,-874.5,0.00037534,12]
[359540208,1746096667369,-400.0,0.00037534,12]
[359540210,1746096667379,-400.0,0.00037534,12]
[359540213,1746096667389,-400.0,0.00037534,12]
[359540215,1746096667400,-400.0,0.00037534,12]
[359540217,1746096667410,-400.0,0.00037534,12]
[359540219,1746096667421,-400.0,0.00037534,12]
[359540221,1746096667431,-1392.23,0.00037534,12]
[359540223,1746096667441,-663.52,0.00037534,12]
[359540225,1746096667451,-400.0,0.00037534,12]
[359540227,1746096667460,-2892.0,0.00037534,12]
[359540229,1746096667470,-400.0,0.00037534,12]
[359540231,1746096667479,-1206.57,0.00037534,12]
[359540233,1746096667490,-685.28,0.00037534,12]
[359540235,1746096667499,-930.63,0.00037534,12]
[359540237,1746096667509,-1698.64,0.00037534,12]
[359540239,1746096667520,-1999.55,0.00037534,12]
[359540241,1746096667530,-1385.06,0.00037534,12]
[359540243,1746096667541,-993.2,0.00037534,12]
[359540245,1746096667550,-948.73,0.00037534,12]
[359540247,1746096667560,-400.0,0.00037534,12]
[359540249,1746096667570,-608.21,0.00037534,12]
[359540251,1746096667580,-400.0,0.00037534,12]
[359540253,1746096667590,-603.47,0.00037534,12]
[359540255,1746096667599,-404.65,0.00037534,12]
[359540257,1746096667610,-1600.93,0.00037534,12]
[359540260,1746096667621,-1512.75,0.00037534,12]
[359540262,1746096667631,-1715.43,0.00037534,12]
[359540264,1746096667644,-1068.22,0.00037534,12]
[359540266,1746096667654,-421.82,0.00037534,12]
[359540268,1746096667664,-400.0,0.00037534,12]
[359540270,1746096667674,-400.0,0.00037534,12]
[359540272,1746096667684,-1878.01,0.00037534,12]
[359540274,1746096667694,-520.36,0.00037534,7]
[359540276,1746096667705,-24151.59,0.00037534,12]
[359540278,1746096667715,-400.0,0.00037534,12]
[359540280,1746096667724,-967.92,0.00037534,12]
[359540282,1746096667734,-618.55,0.00037534,12]
[359540284,1746096667745,-400.0,0.00037534,12]
[359540286,1746096667754,-300.0,0.00037534,12]
[359540288,1746096667764,-63017.69,0.000376,30]
[359540290,1746096667774,-587.624001,0.000376,14]
[359540292,1746096667784,-587.624001,0.000376,14]
[359540294,1746096667794,-166.674247,0.000376,14]
[359540297,1746096667804,-166.674247,0.000376,14]
[359540298,1746096667814,-4407.206854,0.000376,2]
[359540301,1746096667825,-4407.206854,0.000376,2]
[359540303,1746096667835,-500.0,0.0003764,14]
[359540305,1746096667844,-2700.0,0.00037723,5]
[359540307,1746096667854,-97109.32281396,0.00037762,2]
[359540309,1746096667863,-159235.25857549,0.00037764,2]
[359540311,1746096667872,-160614.76652147,0.00037764,2]
[359540313,1746096667882,-151.0,0.00037764,14]
[359540315,1746096667891,-151.0,0.00037764,14]
[359540317,1746096667901,-151.0,0.00037764,14]
[359540319,1746096667911,-587.624001,0.00037764,14]
[359540321,1746096667920,-233.651579,0.00037764,14]
[359540323,1746096667930,-233.651579,0.00037764,14]
[359540325,1746096667939,-587.624001,0.00037764,14]
[359540327,1746096667949,-166.674247,0.00037764,14]
[359540329,1746096667958,-166.674247,0.00037764,14]
[359540331,1746096667967,-151.0,0.00037764,14]
[359540333,1746096667976,-151.0,0.00037764,14]
[359540335,1746096667986,-151.0,0.00037764,14]
[359540337,1746096667996,-4407.206854,0.00037764,2]
[359540339,1746096668006,-4407.206854,0.00037764,2]
[359540341,1746096668016,-671.773696,0.00037764,14]
[359540343,1746096668026,-671.773696,0.00037764,14]
[359540345,1746096668037,-151.0,0.00037764,14]
[359540347,1746096668048,-151.0,0.00037764,14]
[359540349,1746096668058,-185.663178,0.00037764,14]
[359540350,1746096668068,-477.285113,0.00037764,14]
[359540353,1746096668078,-477.285113,0.00037764,14]
[359540354,1746096668086,-902.74,0.00037808,12]
[359540355,1746096668095,-280.9938098,0.00037808,12]
[359540356,1746096668105,-400.0,0.00037808,12]
[359540357,1746096668114,-590.31,0.00037808,12]
[359540358,1746096668124,-492.25,0.00037808,12]
[359540359,1746096668137,-400.0,0.00037808,12]
[359540360,1746096668146,-400.0,0.00037808,12]
[359540361,1746096668156,-801.35,0.00037808,12]
[359540362,1746096668165,-400.0,0.00037808,12]
[359540363,1746096668174,-423.58,0.00037808,12]
[359540364,1746096668184,-432.05,0.00037808,12]
[359540365,1746096668194,-500.0,0.00037808,12]
[359540366,1746096668204,-428.13,0.00037808,12]
[359540367,1746096668213,-400.0,0.00037808,12]
[359540368,1746096668223,-400.0,0.00037808,12]
[359540369,1746096668232,-533.88,0.00037808,12]
[359540370,1746096668244,-400.0,0.00037808,12]
[359540371,1746096668254,-400.0,0.00037808,12]
[359540373,1746096668265,-634.75,0.00037808,12]
[359540375,1746096668275,-400.0,0.00037808,12]
[359540377,1746096668285,-400.0,0.00037808,12]
[359540379,1746096668295,-1060.8,0.00037808,12]
[359540381,1746096668305,-400.0,0.00037808,12]
[359540383,1746096668315,-400.0,0.00037808,12]
[359540385,1746096668325,-5879.35,0.00037808,12]
[359540387,1746096668335,-400.0,0.00037808,12]
[359540389,1746096668345,-400.0,0.00037808,12]
[359540391,1746096668355,-1242.1,0.00037808,12]
[359540406,1746096668365,-1506.06,0.00037808,12]
[359540410,1746096668519,-400.0,0.00037808,12]
[359540412,1746096668530,-400.0,0.00037808,12]
[359540413,1746096668540,-972.05,0.00037808,12]
[359540415,1746096668550,-400.0,0.00037808,12]
[359540417,1746096668561,-437.91,0.00037808,12]
[359540419,1746096668570,-400.0,0.00037808,12]
[359540421,1746096668580,-400.0,0.00037808,12]
[359540423,1746096668590,-974.81,0.00037808,12]
[359540425,1746096668599,-400.0,0.00037808,12]
[359540427,1746096668609,-922.16,0.00037808,12]
[359540429,1746096668619,-1363.87,0.00037808,12]
[359540431,1746096668629,-400.0,0.00037808,12]
[359540433,1746096668639,-342.08257725,0.00037808,12]
[359540435,1746096668648,-1035.43,0.00037808,12]
[359540437,1746096668658,-1130.45,0.00037808,12]
[359540439,1746096668667,-400.0,0.00037808,12]
[359540441,1746096668678,-544.71,0.00037808,12]
[359540444,1746096668688,-400.0,0.00037808,12]
[359540446,1746096668699,-400.0,0.00037808,12]
[359540448,1746096668708,-999.06,0.00037808,12]
[359540450,1746096668717,-400.0,0.00037808,12]
[359540452,1746096668727,-487.72,0.00037808,12]
[359540454,1746096668736,-412.74484912,0.00037808,12]
[359540456,1746096668746,-400.0,0.00037808,12]
[359540458,1746096668756,-687.88,0.00037808,12]
[359540460,1746096668766,-400.0,0.00037808,12]
[359540462,1746096668775,-766.29,0.00037808,12]
[359540464,1746096668784,-306.07050222,0.00037808,12]
[359540466,1746096668794,-400.0,0.00037808,12]
[359540468,1746096668804,-414.4,0.00037808,12]
[359540470,1746096668814,-437.32,0.00037808,12]
[359540472,1746096668824,-400.0,0.00037808,12]
[359540473,1746096668833,-711.38,0.00037808,12]
[359540475,1746096668843,-780.7,0.00037808,12]
[359540477,1746096668853,-1690.3,0.00037808,12]
[359540479,1746096668862,-850.81,0.00037808,12]
[359540481,1746096668871,-408.52319836,0.00037808,12]
[359540483,1746096668881,-220.68276168,0.00037808,12]
[359540485,1746096668890,-400.0,0.00037808,12]
[359540487,1746096668900,-786.89,0.00037808,12]
[359540489,1746096668909,-640.11,0.00037808,12]
[359540491,1746096668918,-400.0,0.00037808,12]
[359540493,1746096668928,-417.64,0.00037808,12]
[359540495,1746096668938,-584.45,0.00037808,12]
[359540497,1746096668947,-400.0,0.00037808,12]
[359540499,1746096668957,-400.0,0.00037808,12]
[359540502,1746096668967,-868.0,0.00037808,12]
[359540503,1746096668979,-716.32,0.00037808,12]
[359540506,1746096668988,-400.0,0.00037808,12]
[359540508,1746096668999,-642.27,0.00037808,12]
[359540510,1746096669010,-400.0,0.00037808,12]
[359540512,1746096669019,-400.0,0.00037808,12]
[359540514,1746096669029,-7263.1,0.00037808,12]
[359540516,1746096669040,-400.0,0.00037808,12]
[359540518,1746096669050,-474.85,0.00037808,12]
[359540520,1746096669059,-1279.87,0.00037808,12]
[359540522,1746096669069,-400.0,0.00037808,12]
[359540524,1746096669078,-782.18,0.00037808,12]
[359540526,1746096669088,-613.22,0.00037808,12]
[359540528,1746096669098,-663.26,0.00037808,12]
[359540530,1746096669113,-1214.5,0.00037808,12]
[359540532,1746096669122,-721.89,0.00037808,12]
[359540534,1746096669132,-749.12,0.00037808,12]
[359540536,1746096669142,-653.13,0.00037808,12]
[359540538,1746096669152,-400.0,0.00037808,12]
[359540540,1746096669162,-400.0,0.00037808,12]
[359540542,1746096669172,-400.0,0.00037808,12]
[359540544,1746096669182,-2249.58,0.00037808,12]
[359540546,1746096669192,-400.0,0.00037808,12]
[359540548,1746096669203,-400.0,0.00037808,12]
[359540550,1746096669213,-400.0,0.00037808,12]
[359540552,1746096669223,-400.0,0.00037808,12]
[359540554,1746096669233,-1189.09,0.00037808,12]
[359540557,1746096669244,-7409.08,0.00037808,12]
[359540559,1746096669254,-400.0,0.00037808,12]
[359540561,1746096669263,-5309.34,0.00037808,2]
[359540563,1746096669273,-587.93,0.00037808,12]
[359540565,1746096669282,-400.0,0.00037808,12]
[359540567,1746096669292,-1353.42,0.00037808,12]
[359540569,1746096669302,-400.0,0.00037808,12]
[359540571,1746096669312,-406.49,0.00037808,12]
[359540573,1746096669322,-400.0,0.00037808,12]
[359540575,1746096669332,-400.0,0.00037808,12]
[359540577,1746096669341,-400.0,0.00037808,12]
[359540579,1746096669352,-400.0,0.00037808,12]
[359540581,1746096669362,-2637.7,0.00037808,12]
[359540583,1746096669372,-1022.26,0.00037808,12]
[359540585,1746096669381,-400.0,0.00037808,12]
[359540587,1746096669391,-586.11,0.00037808,12]
[359540589,1746096669401,-400.0,0.00037808,12]
[359540591,1746096669411,-4465.41,0.00037808,12]
[359540593,1746096669419,-5251.3,0.00037808,12]
[359540595,1746096669429,-2091.05,0.00037808,12]
[359540597,1746096669438,-3705.22,0.00037808,12]
[359540599,1746096669447,-400.0,0.00037808,12]
[359540601,1746096669457,-1883.95,0.00037808,12]
[359540603,1746096669467,-400.0,0.00037808,12]
[359540605,1746096669476,-791.98,0.00037808,12]
[359540607,1746096669485,-400.0,0.00037808,12]
[359540609,1746096669495,-400.0,0.00037808,12]
[359540611,1746096669505,-731.82,0.00037808,12]
[359540613,1746096669514,-212.42831821,0.00037808,12]
[359540615,1746096669524,-400.0,0.00037808,12]
[359540617,1746096669534,-400.0,0.00037808,12]
[359540619,1746096669544,-413.07,0.00037808,12]
[359540621,1746096669553,-1782.62,0.00037808,12]
[359540623,1746096669564,-400.0,0.00037808,12]
[359540625,1746096669573,-400.0,0.00037808,12]
[359540627,1746096669583,-400.0,0.00037808,12]
[359540629,1746096669592,-2643.74,0.00037808,12]
[359540631,1746096669602,-400.0,0.00037808,12]
[359540633,1746096669611,-400.0,0.00037808,12]
[359540635,1746096669620,-652.63,0.00037808,12]
[359540637,1746096669630,-400.0,0.00037808,12]
[359540639,1746096669639,-2256.5,0.00037808,12]
[359540640,1746096669649,-880.9,0.00037808,12]
[359540641,1746096669659,-1390.66,0.00037808,12]
[359540642,1746096669669,-553.06,0.00037808,12]
[359540643,1746096669678,-746.24,0.00037808,12]
[359540644,1746096669687,-734.35,0.00037808,12]
[359540645,1746096669697,-400.0,0.00037808,12]
[359540646,1746096669706,-400.0,0.00037808,12]
[359540647,1746096669716,-400.0,0.00037808,12]
[359540648,1746096669725,-400.0,0.00037808,12]
[359540649,1746096669735,-400.0,0.00037808,12]
[359540650,1746096669745,-1827.75,0.00037808,12]
[359540651,1746096669755,-400.0,0.00037808,12]
[359540652,1746096669764,-874.5,0.00037808,12]
[359540653,1746096669773,-400.0,0.00037808,12]
[359540654,1746096669783,-400.0,0.00037808,12]
[359540655,1746096669793,-400.0,0.00037808,12]
[359540656,1746096669802,-400.0,0.00037808,12]
[359540657,1746096669812,-400.0,0.00037808,12]
[359540658,1746096669822,-200.42628082,0.00037808,12]
[359540659,1746096669832,-1392.23,0.00037808,12]
[359540660,1746096669841,-663.52,0.00037808,12]
[359540661,1746096669851,-400.0,0.00037808,12]
[359540662,1746096669860,-2892.0,0.00037808,12]
[359540663,1746096669869,-400.0,0.00037808,12]
[359540664,1746096669879,-1206.57,0.00037808,12]
[359540665,1746096669888,-685.28,0.00037808,12]
[359540666,1746096669898,-930.63,0.00037808,12]
[359540667,1746096669908,-1698.64,0.00037808,12]
[359540668,1746096669918,-1999.55,0.00037808,12]
[359540669,1746096669928,-1385.06,0.00037808,12]
[359540670,1746096669937,-993.2,0.00037808,12]
[359540671,1746096669947,-948.73,0.00037808,12]
[359540672,1746096669956,-400.0,0.00037808,12]
[359540673,1746096669966,-608.21,0.00037808,12]
[359540674,1746096669975,-538.39473059,0.00037808,12]
[359540675,1746096669985,-603.47,0.00037808,12]
[359540676,1746096669995,-404.65,0.00037808,12]
[359540677,1746096670005,-1600.93,0.00037808,12]
[359540678,1746096670015,-1512.75,0.00037808,12]
[359540679,1746096670025,-1715.43,0.00037808,12]
[359540680,1746096670035,-1068.22,0.00037808,12]
[359540681,1746096670047,-421.82,0.00037808,12]
[359540682,1746096670057,-400.0,0.00037808,12]
[359540683,1746096670066,-400.0,0.00037808,12]
[359540684,1746096670076,-1878.01,0.00037808,12]
[359540685,1746096670086,-520.36,0.00037808,7]
[359540686,1746096670096,-368.09290972,0.00037808,12]
[359540687,1746096670106,-967.92,0.00037808,12]
[359540688,1746096670115,-618.55,0.00037808,12]
[359540689,1746096670125,-152.14089968,0.00037808,12]
[359540690,1746096670135,-24151.59,0.00037808,12]
[359540691,1746096670145,-5439.67,0.000379,7]
[359540692,1746096670155,-481.0111539,0.00037969,37]
[359540693,1746096670165,-2823.02593774,0.00037972,2]
[359540694,1746096670175,-2637.21,0.0003799,120]
[359540695,1746096670184,-2000.0,0.00038,120]
[359540696,1746096670194,-2000.0,0.00038,120]
[359540697,1746096670204,-2000.0,0.00038,120]
[359540699,1746096670214,-2000.0,0.00038,120]
[359540701,1746096670223,-2000.0,0.00038,120]
[359540702,1746096670231,-2000.0,0.00038,120]
[359540703,1746096670240,-2000.0,0.00038,120]
[359540704,1746096670250,-2000.0,0.00038,120]
[359540705,1746096670259,-2000.0,0.00038,120]
[359540706,1746096670268,-2000.0,0.00038,120]
[359540707,1746096670279,-2000.0,0.00038,120]
[359540708,1746096670287,-2000.0,0.00038,120]
[359540709,1746096670297,-2000.0,0.00038,120]
[359540710,1746096670307,-2000.0,0.00038,120]
[359540711,1746096670316,-2000.0,0.00038,120]
[359540712,1746096670326,-2000.0,0.00038,120]
[359540713,1746096670336,-2000.0,0.00038,120]
[359540714,1746096670346,-2000.0,0.00038,120]
[359540715,1746096670356,-2000.0,0.00038,120]
[359540716,1746096670365,-2000.0,0.00038,120]
[359540717,1746096670375,-2000.0,0.00038,120]
[359540718,1746096670384,-2000.0,0.00038,120]
[359540719,1746096670394,-2000.0,0.00038,120]
[359540720,1746096670405,-2000.0,0.00038,120]
[359540721,1746096670414,-2000.0,0.00038,120]
[359540722,1746096670424,-2000.0,0.00038,120]
[359540723,1746096670434,-2000.0,0.00038,120]
[359540724,1746096670444,-2000.0,0.00038,120]
[359540725,1746096670454,-2000.0,0.00038,120]
[359540726,1746096670464,-2000.0,0.00038,120]
[359540727,1746096670474,-2000.0,0.00038,120]
[359540728,1746096670484,-2000.0,0.00038,120]
[359540729,1746096670496,-2000.0,0.00038,120]
[359540730,1746096670505,-2000.0,0.00038,120]
[359540732,1746096670514,-2000.0,0.00038,120]